[Event "*** SCC Grand Prix: Titled Tuesday Blitz"]
[Site "Chess.com"]
[Date "2020.09.29"]
[Round "2"]
[White "Sadykov_Ramil"]
[Black "Chessmatus"]
[Result "0-1"]
[WhiteElo "2513"]
[BlackElo "2327"]
[TimeControl "180+1"]
[EndTime "10:17:16 PDT"]
[Termination "Chessmatus won on time"]

1. e4 {[%clk 0:02:52.8]} 1... c5 {[%clk 0:02:54.3]} 2. Nf3 {[%clk 0:02:49.7]}
2... d6 {[%clk 0:02:54.7]} 3. d4 {[%clk 0:02:49.4]} 3... cxd4 {[%clk 0:02:55.6]}
4. Nxd4 {[%clk 0:02:49.6]} 4... Nf6 {[%clk 0:02:55.9]} 5. Bd3 {[%clk 0:02:29]}
5... e5 {[%clk 0:02:23.3]} 6. Nb3 {[%clk 0:02:26.4]} 6... Be6 {[%clk 0:02:19.2]}
7. c4 {[%clk 0:02:22.1]} 7... Nbd7 {[%clk 0:02:18.2]} 8. f3 {[%clk 0:02:11.9]}
8... Rc8 {[%clk 0:02:17.6]} 9. Na3 {[%clk 0:02:11.6]} 9... Be7 {[%clk 0:02:10]}
10. Be3 {[%clk 0:02:07.6]} 10... a6 {[%clk 0:02:09.7]} 11. O-O {[%clk
0:02:06.6]} 11... O-O {[%clk 0:02:10.2]} 12. Rc1 {[%clk 0:02:05.8]} 12... Nh5
{[%clk 0:02:06.7]} 13. Qd2 {[%clk 0:01:59.7]} 13... g6 {[%clk 0:01:58.4]} 14.
Rfd1 {[%clk 0:01:53.1]} 14... f5 {[%clk 0:01:38.5]} 15. Bb1 {[%clk 0:01:33.9]}
15... Ndf6 {[%clk 0:01:19.2]} 16. exf5 {[%clk 0:01:05.3]} 16... gxf5 {[%clk
0:01:18.3]} 17. Bh6 {[%clk 0:01:03.9]} 17... Rf7 {[%clk 0:00:58.9]} 18. Qg5+
{[%clk 0:00:56.5]} 18... Ng7 {[%clk 0:00:54.6]} 19. Qd2 {[%clk 0:00:20.4]} 19...
f4 {[%clk 0:00:40.8]} 20. Qa5 {[%clk 0:00:14.3]} 20... Qe8 {[%clk 0:00:34]} 21.
Bg5 {[%clk 0:00:08.1]} 21... Nf5 {[%clk 0:00:28.8]} 22. Bxf5 {[%clk 0:00:06.5]}
22... Bxf5 {[%clk 0:00:27.6]} 23. c5 {[%clk 0:00:06.3]} 23... Rg7 {[%clk
0:00:21]} 24. Bxf6 {[%clk 0:00:04.9]} 24... Bxf6 {[%clk 0:00:21.6]} 25. cxd6
{[%clk 0:00:04.2]} 25... Rxc1 {[%clk 0:00:20.5]} 26. Rxc1 {[%clk 0:00:04.6]}
26... Qg6 {[%clk 0:00:20.2]} 27. Qd2 {[%clk 0:00:04.7]} 27... Bh3 {[%clk
0:00:16.8]} 28. Rc2 {[%clk 0:00:04.4]} 28... e4 {[%clk 0:00:15]} 29. fxe4 {[%clk
0:00:01.9]} 29... f3 {[%clk 0:00:11.2]} 30. g3 {[%clk 0:00:01.7]} 30... Qxe4
{[%clk 0:00:10.4]} 31. Kf2 {[%clk 0:00:02.3]} 31... Bg5 {[%clk 0:00:09.2]} 32.
Qc3 {[%clk 0:00:01]} 32... Bf5 {[%clk 0:00:05.3]} 0-1

[Event "*** SCC Grand Prix: Titled Tuesday Blitz"]
[Site "Chess.com"]
[Date "2020.09.29"]
[Round "2"]
[White "Khnykin_Nikolay"]
[Black "KacperPolOK"]
[Result "0-1"]
[WhiteElo "2079"]
[BlackElo "2386"]
[TimeControl "180+1"]
[EndTime "10:17:17 PDT"]
[Termination "KacperPolOK won by resignation"]

1. e4 {[%clk 0:03:00.9]} 1... c5 {[%clk 0:02:56.1]} 2. d4 {[%clk 0:02:50.2]}
2... cxd4 {[%clk 0:02:54.1]} 3. c3 {[%clk 0:02:50.5]} 3... e5 {[%clk 0:02:53.1]}
4. cxd4 {[%clk 0:02:50.1]} 4... exd4 {[%clk 0:02:53.3]} 5. Qxd4 {[%clk 0:02:50]}
5... Nc6 {[%clk 0:02:51.4]} 6. Qd1 {[%clk 0:02:47.6]} 6... Nf6 {[%clk
0:02:51.2]} 7. Nc3 {[%clk 0:02:46.7]} 7... Bb4 {[%clk 0:02:50.5]} 8. Bd3 {[%clk
0:02:46.1]} 8... d5 {[%clk 0:02:47.2]} 9. exd5 {[%clk 0:02:35.8]} 9... Qxd5
{[%clk 0:02:21.3]} 10. Ne2 {[%clk 0:02:29.8]} 10... Qxg2 {[%clk 0:02:09.6]} 11.
Rg1 {[%clk 0:02:23.1]} 11... Bxc3+ {[%clk 0:01:53]} 12. bxc3 {[%clk 0:02:19.9]}
12... Qf3 {[%clk 0:01:53.6]} 13. Rxg7 {[%clk 0:02:10.2]} 13... Bg4 {[%clk
0:01:41.3]} 14. Bc4 {[%clk 0:01:59.2]} 14... Rd8 {[%clk 0:01:35.9]} 15. Qb3
{[%clk 0:00:46.9]} 15... Qh1+ {[%clk 0:01:33.9]} 16. Ng1 {[%clk 0:00:46.1]}
16... Qxg1+ {[%clk 0:01:29.8]} 17. Bf1 {[%clk 0:00:45.1]} 17... Rd1+ {[%clk
0:01:18.7]} 18. Qxd1 {[%clk 0:00:44.2]} 18... Qxf1+ {[%clk 0:00:35.9]} 19. Kxf1
{[%clk 0:00:40.9]} 19... Bxd1 {[%clk 0:00:36.8]} 20. Bg5 {[%clk 0:00:30.2]}
20... Nh5 {[%clk 0:00:30.8]} 21. Rxd1 {[%clk 0:00:17.2]} 21... Nxg7 {[%clk
0:00:30.4]} 22. Bf6 {[%clk 0:00:16.9]} 22... Rg8 {[%clk 0:00:28.1]} 23. Ke2
{[%clk 0:00:16.8]} 23... Ne6 {[%clk 0:00:27.8]} 24. Kf3 {[%clk 0:00:13.1]} 24...
Rg6 {[%clk 0:00:26.8]} 25. Bh4 {[%clk 0:00:11.9]} 25... Kf8 {[%clk 0:00:18.1]}
26. Ke4 {[%clk 0:00:09.6]} 26... Rg4+ {[%clk 0:00:16.7]} 27. f4 {[%clk
0:00:07.2]} 27... Rxf4+ {[%clk 0:00:16.6]} 28. Ke3 {[%clk 0:00:07.3]} 28... Rxh4
{[%clk 0:00:16.8]} 29. Rd7 {[%clk 0:00:05.6]} 29... Rh3+ {[%clk 0:00:16]} 30.
Ke4 {[%clk 0:00:04.7]} 30... Rxc3 {[%clk 0:00:15.8]} 31. Rxb7 {[%clk 0:00:04.3]}
31... Ra3 {[%clk 0:00:15.5]} 32. Rd7 {[%clk 0:00:02.3]} 32... Rxa2 {[%clk
0:00:15.4]} 33. Kd5 {[%clk 0:00:01.6]} 33... Rd2+ {[%clk 0:00:14.8]} 34. Kxc6
{[%clk 0:00:01.7]} 34... Rxd7 {[%clk 0:00:14.4]} 35. Kxd7 {[%clk 0:00:01.7]}
35... a5 {[%clk 0:00:15]} 36. Kc6 {[%clk 0:00:01.8]} 36... a4 {[%clk 0:00:15.9]}
37. Kb5 {[%clk 0:00:01.9]} 37... a3 {[%clk 0:00:16.8]} 38. Kb4 {[%clk 0:00:02]}
38... a2 {[%clk 0:00:17.7]} 39. Kb3 {[%clk 0:00:02.5]} 39... a1=Q {[%clk
0:00:18.6]} 40. Kb4 {[%clk 0:00:02.5]} 40... Qd1 {[%clk 0:00:18.9]} 0-1

[Event "*** SCC Grand Prix: Titled Tuesday Blitz"]
[Site "Chess.com"]
[Date "2020.09.29"]
[Round "2"]
[White "MrChampion_Coach"]
[Black "Chesswizard_2007"]
[Result "1-0"]
[WhiteElo "2347"]
[BlackElo "2563"]
[TimeControl "180+1"]
[EndTime "10:17:21 PDT"]
[Termination "MrChampion_Coach won by checkmate"]

1. d4 {[%clk 0:03:00.9]} 1... f5 {[%clk 0:02:52.8]} 2. c4 {[%clk 0:02:56.8]}
2... Nf6 {[%clk 0:02:48.7]} 3. Nc3 {[%clk 0:02:57.1]} 3... e6 {[%clk 0:02:48.2]}
4. Nf3 {[%clk 0:02:48.9]} 4... d5 {[%clk 0:02:33.6]} 5. Bf4 {[%clk 0:02:48.2]}
5... Bd6 {[%clk 0:02:33.3]} 6. e3 {[%clk 0:02:48]} 6... O-O {[%clk 0:02:31]} 7.
c5 {[%clk 0:02:44.5]} 7... Be7 {[%clk 0:02:29.4]} 8. Qc2 {[%clk 0:02:39.9]} 8...
Ne4 {[%clk 0:02:26.8]} 9. h3 {[%clk 0:02:36.2]} 9... c6 {[%clk 0:02:23]} 10. Ne5
{[%clk 0:02:33]} 10... Nd7 {[%clk 0:02:21.6]} 11. O-O-O {[%clk 0:02:29.1]} 11...
Nxe5 {[%clk 0:02:19.6]} 12. Bxe5 {[%clk 0:02:30]} 12... b6 {[%clk 0:02:16.8]}
13. f3 {[%clk 0:02:25.6]} 13... Nf6 {[%clk 0:02:04.9]} 14. Na4 {[%clk
0:02:18.8]} 14... Bb7 {[%clk 0:01:54.2]} 15. g4 {[%clk 0:02:13]} 15... Nd7
{[%clk 0:01:52.6]} 16. f4 {[%clk 0:02:11.5]} 16... Nxe5 {[%clk 0:01:47.4]} 17.
dxe5 {[%clk 0:02:03.2]} 17... b5 {[%clk 0:01:47.1]} 18. Nc3 {[%clk 0:02:01]}
18... Bxc5 {[%clk 0:01:46.9]} 19. Kb1 {[%clk 0:02:01.6]} 19... Bxe3 {[%clk
0:01:43.9]} 20. gxf5 {[%clk 0:02:01.1]} 20... Bxf4 {[%clk 0:01:38.6]} 21. f6
{[%clk 0:01:37.4]} 21... gxf6 {[%clk 0:01:31.2]} 22. exf6 {[%clk 0:01:31.7]}
22... Qxf6 {[%clk 0:01:32.1]} 23. Bd3 {[%clk 0:01:31.7]} 23... Rf7 {[%clk
0:01:26.7]} 24. Rdf1 {[%clk 0:01:28]} 24... e5 {[%clk 0:01:25.9]} 25. Ne2 {[%clk
0:01:21]} 25... Kh8 {[%clk 0:01:25.5]} 26. Qb3 {[%clk 0:00:57.7]} 26... Raf8
{[%clk 0:01:11.6]} 27. Rhg1 {[%clk 0:00:54.2]} 27... a6 {[%clk 0:01:06.5]} 28.
Bc2 {[%clk 0:00:49.1]} 28... c5 {[%clk 0:01:04.6]} 29. Qf3 {[%clk 0:00:47.7]}
29... Qh6 {[%clk 0:00:59.3]} 30. Rg4 {[%clk 0:00:20.2]} 30... c4 {[%clk
0:00:42.2]} 31. Rfg1 {[%clk 0:00:17.5]} 31... e4 {[%clk 0:00:29.3]} 32. Qg2
{[%clk 0:00:17.1]} 32... Bg3 {[%clk 0:00:14.7]} 33. Rxg3 {[%clk 0:00:12.5]}
33... Rf1+ {[%clk 0:00:07.2]} 34. Rxf1 {[%clk 0:00:12.4]} 34... Rxf1+ {[%clk
0:00:07.4]} 35. Qxf1 {[%clk 0:00:13.3]} 35... d4 {[%clk 0:00:04.4]} 36. Qg1
{[%clk 0:00:13.4]} 36... Qf8 {[%clk 0:00:04.1]} 37. Qxd4+ {[%clk 0:00:12.7]}
37... Qf6 {[%clk 0:00:04.4]} 38. Qxf6# {[%clk 0:00:13.2]} 1-0

[Event "*** SCC Grand Prix: Titled Tuesday Blitz"]
[Site "Chess.com"]
[Date "2020.09.29"]
[Round "2"]
[White "Tenamu"]
[Black "RamyresCoelho"]
[Result "0-1"]
[WhiteElo "2354"]
[BlackElo "2015"]
[TimeControl "180+1"]
[EndTime "10:17:21 PDT"]
[Termination "RamyresCoelho won by resignation"]

1. d4 {[%clk 0:02:55.4]} 1... Nf6 {[%clk 0:03:00.1]} 2. Nc3 {[%clk 0:02:55]}
2... d5 {[%clk 0:02:58.9]} 3. Bf4 {[%clk 0:02:54.6]} 3... c6 {[%clk 0:02:57]} 4.
e3 {[%clk 0:02:54.1]} 4... e6 {[%clk 0:02:57.2]} 5. Nf3 {[%clk 0:02:53]} 5...
Bd6 {[%clk 0:02:57.6]} 6. Bd3 {[%clk 0:02:51.6]} 6... O-O {[%clk 0:02:57.6]} 7.
O-O {[%clk 0:02:51.6]} 7... b5 {[%clk 0:02:57.5]} 8. a3 {[%clk 0:02:50.9]} 8...
Bb7 {[%clk 0:02:57.5]} 9. Re1 {[%clk 0:02:49.2]} 9... a5 {[%clk 0:02:57.6]} 10.
Qd2 {[%clk 0:02:45.6]} 10... Na6 {[%clk 0:02:55.2]} 11. Ne5 {[%clk 0:02:43.6]}
11... Nc7 {[%clk 0:02:54]} 12. f3 {[%clk 0:02:41.8]} 12... Qe7 {[%clk
0:02:47.8]} 13. Ne2 {[%clk 0:02:39.2]} 13... Nh5 {[%clk 0:02:46.1]} 14. Ng3
{[%clk 0:02:27.2]} 14... Nxf4 {[%clk 0:02:44.4]} 15. exf4 {[%clk 0:02:28.1]}
15... c5 {[%clk 0:02:41.9]} 16. c3 {[%clk 0:02:27.2]} 16... c4 {[%clk
0:02:34.6]} 17. Bc2 {[%clk 0:02:26.5]} 17... Qh4 {[%clk 0:02:32.9]} 18. f5
{[%clk 0:02:21.5]} 18... Kh8 {[%clk 0:02:20.1]} 19. Qf2 {[%clk 0:01:56.6]} 19...
Rae8 {[%clk 0:02:10.6]} 20. f4 {[%clk 0:01:49]} 20... Qd8 {[%clk 0:01:56.4]} 21.
Nh5 {[%clk 0:01:42.8]} 21... exf5 {[%clk 0:01:49.7]} 22. g4 {[%clk 0:01:31.6]}
22... g6 {[%clk 0:01:49]} 23. Ng3 {[%clk 0:01:31.5]} 23... fxg4 {[%clk
0:01:44.7]} 24. f5 {[%clk 0:01:30.4]} 24... Qh4 {[%clk 0:01:40.1]} 25. Nd7
{[%clk 0:01:17.1]} 25... Rg8 {[%clk 0:01:16.8]} 26. f6 {[%clk 0:01:15.2]} 26...
Re6 {[%clk 0:01:07.7]} 27. Ne5 {[%clk 0:00:57.7]} 27... Rxf6 {[%clk 0:00:58.6]}
28. Nxf7+ {[%clk 0:00:55.6]} 28... Kg7 {[%clk 0:00:59]} 29. Nxd6 {[%clk
0:00:55.3]} 29... Rxf2 {[%clk 0:00:57.6]} 30. Kxf2 {[%clk 0:00:55.5]} 30...
Qxh2+ {[%clk 0:00:57.6]} 31. Kf1 {[%clk 0:00:53.1]} 31... Rf8+ {[%clk
0:00:53.2]} 32. Ngf5+ {[%clk 0:00:49.5]} 32... gxf5 {[%clk 0:00:49.7]} 33. Re7+
{[%clk 0:00:48.5]} 33... Kg8 {[%clk 0:00:45.7]} 34. Rae1 {[%clk 0:00:44.7]}
34... Qxc2 {[%clk 0:00:43.8]} 35. Rxc7 {[%clk 0:00:43]} 35... Qd3+ {[%clk
0:00:41.8]} 36. Kg1 {[%clk 0:00:40.6]} 36... Qg3+ {[%clk 0:00:40.9]} 37. Kf1
{[%clk 0:00:40.7]} 37... Qxd6 {[%clk 0:00:41.3]} 38. Rxb7 {[%clk 0:00:39.9]}
38... Qf4+ {[%clk 0:00:40.9]} 39. Kg2 {[%clk 0:00:38.2]} 39... g3 {[%clk
0:00:40.9]} 40. Kh3 {[%clk 0:00:35.2]} 40... Qg4+ {[%clk 0:00:39.6]} 41. Kg2
{[%clk 0:00:35.3]} 41... Qf4 {[%clk 0:00:37.2]} 42. Re2 {[%clk 0:00:32.7]} 42...
h5 {[%clk 0:00:33.7]} 43. Rbe7 {[%clk 0:00:25.8]} 43... h4 {[%clk 0:00:32.2]}
44. R7e3 {[%clk 0:00:24.2]} 44... Qg4 {[%clk 0:00:31.5]} 45. Rf3 {[%clk
0:00:19]} 45... h3+ {[%clk 0:00:30.7]} 46. Kg1 {[%clk 0:00:16.9]} 46... Qxf3
{[%clk 0:00:30.6]} 0-1

[Event "*** SCC Grand Prix: Titled Tuesday Blitz"]
[Site "Chess.com"]
[Date "2020.09.29"]
[Round "2"]
[White "Julianos82"]
[Black "tlomigtlis"]
[Result "0-1"]
[WhiteElo "2315"]
[BlackElo "2535"]
[TimeControl "180+1"]
[EndTime "10:17:22 PDT"]
[Termination "tlomigtlis won by checkmate"]

1. d4 {[%clk 0:03:00.9]} 1... d5 {[%clk 0:02:59.7]} 2. Bf4 {[%clk 0:02:59.2]}
2... c5 {[%clk 0:02:59.3]} 3. e3 {[%clk 0:02:57.8]} 3... Nc6 {[%clk 0:02:59.3]}
4. c3 {[%clk 0:02:56.2]} 4... Nf6 {[%clk 0:02:59.2]} 5. Nd2 {[%clk 0:02:54.7]}
5... Bf5 {[%clk 0:02:58.7]} 6. Ngf3 {[%clk 0:02:52.4]} 6... e6 {[%clk 0:02:56]}
7. Ne5 {[%clk 0:02:49.4]} 7... Qb6 {[%clk 0:02:54.1]} 8. Qb3 {[%clk 0:02:44.8]}
8... c4 {[%clk 0:02:53.9]} 9. Qxb6 {[%clk 0:02:38.4]} 9... axb6 {[%clk
0:02:54.8]} 10. a3 {[%clk 0:02:35.6]} 10... Be7 {[%clk 0:02:53.1]} 11. Be2
{[%clk 0:02:32.7]} 11... b5 {[%clk 0:02:48.4]} 12. Rc1 {[%clk 0:02:29.9]} 12...
O-O {[%clk 0:02:46.5]} 13. O-O {[%clk 0:02:14.4]} 13... Nxe5 {[%clk 0:02:42.1]}
14. Bxe5 {[%clk 0:02:05.8]} 14... Nd7 {[%clk 0:02:42.1]} 15. Bg3 {[%clk
0:02:03.5]} 15... Nb6 {[%clk 0:02:41.8]} 16. Bd1 {[%clk 0:01:59.4]} 16... Na4
{[%clk 0:02:39.3]} 17. Bxa4 {[%clk 0:01:58.6]} 17... bxa4 {[%clk 0:02:40.2]} 18.
f3 {[%clk 0:01:56.2]} 18... Bd3 {[%clk 0:02:39.9]} 19. Rf2 {[%clk 0:01:54.6]}
19... Ra6 {[%clk 0:02:39.7]} 20. Nf1 {[%clk 0:01:45.7]} 20... Rb6 {[%clk
0:02:38.5]} 21. Re1 {[%clk 0:01:45.3]} 21... f5 {[%clk 0:02:34.3]} 22. Be5
{[%clk 0:01:42.7]} 22... Rb5 {[%clk 0:02:32.1]} 23. Ng3 {[%clk 0:01:36.4]} 23...
g6 {[%clk 0:02:27.7]} 24. Rd2 {[%clk 0:01:32.2]} 24... Bg5 {[%clk 0:02:19.7]}
25. f4 {[%clk 0:01:29.2]} 25... Bh4 {[%clk 0:02:14.1]} 26. Rc1 {[%clk 0:01:28]}
26... Rc8 {[%clk 0:02:10]} 27. Nh1 {[%clk 0:01:26.2]} 27... Rc6 {[%clk
0:01:58.6]} 28. g3 {[%clk 0:01:24.2]} 28... Be7 {[%clk 0:01:56.7]} 29. Nf2
{[%clk 0:01:22.4]} 29... Be4 {[%clk 0:01:51]} 30. Nxe4 {[%clk 0:01:21]} 30...
fxe4 {[%clk 0:01:51.9]} 31. Re1 {[%clk 0:01:18.1]} 31... Rcb6 {[%clk 0:01:44.7]}
32. Ree2 {[%clk 0:01:17.9]} 32... Rb3 {[%clk 0:01:44.6]} 33. g4 {[%clk
0:01:11.2]} 33... Bxa3 {[%clk 0:01:38.8]} 34. bxa3 {[%clk 0:01:10.6]} 34... Rxc3
{[%clk 0:01:38.4]} 35. f5 {[%clk 0:01:08.1]} 35... exf5 {[%clk 0:01:35.3]} 36.
gxf5 {[%clk 0:01:09]} 36... Rbb3 {[%clk 0:01:33.3]} 37. fxg6 {[%clk 0:01:05.1]}
37... hxg6 {[%clk 0:01:33.4]} 38. Rg2 {[%clk 0:01:04.9]} 38... Rc1+ {[%clk
0:01:21]} 39. Kf2 {[%clk 0:01:04.3]} 39... c3 {[%clk 0:01:20]} 40. Rxg6+ {[%clk
0:01:02.8]} 40... Kh7 {[%clk 0:01:20]} 41. Rg7+ {[%clk 0:01:02.7]} 41... Kh6
{[%clk 0:01:20.3]} 42. Re2 {[%clk 0:00:58.2]} 42... Rb2 {[%clk 0:01:11.8]} 43.
Rc7 {[%clk 0:00:57.5]} 43... c2 {[%clk 0:00:33.4]} 44. h4 {[%clk 0:00:37.2]}
44... Kh5 {[%clk 0:00:30.2]} 45. Bf4 {[%clk 0:00:26.5]} 45... Kg4 {[%clk
0:00:22.3]} 46. Kg2 {[%clk 0:00:23.3]} 46... Rbb1 {[%clk 0:00:19.5]} 47. Rexc2
{[%clk 0:00:21.6]} 47... Rg1+ {[%clk 0:00:19.2]} 48. Kh2 {[%clk 0:00:20.6]}
48... Rh1+ {[%clk 0:00:18.9]} 49. Kg2 {[%clk 0:00:20.6]} 49... Rhg1+ {[%clk
0:00:18.4]} 50. Kh2 {[%clk 0:00:20.6]} 50... Kf3 {[%clk 0:00:17.6]} 51. Rf7
{[%clk 0:00:18.4]} 51... Rh1# {[%clk 0:00:17.3]} 0-1

[Event "*** SCC Grand Prix: Titled Tuesday Blitz"]
[Site "Chess.com"]
[Date "2020.09.29"]
[Round "2"]
[White "PowerThinking2650"]
[Black "MikeSailer"]
[Result "1-0"]
[WhiteElo "2381"]
[BlackElo "2068"]
[TimeControl "180+1"]
[EndTime "10:17:22 PDT"]
[Termination "PowerThinking2650 won by resignation"]

1. e4 {[%clk 0:03:00.9]} 1... d5 {[%clk 0:02:59.3]} 2. exd5 {[%clk 0:02:59.9]}
2... Qxd5 {[%clk 0:02:59.7]} 3. Nc3 {[%clk 0:02:59.9]} 3... Qd6 {[%clk
0:03:00.3]} 4. d4 {[%clk 0:03:00.1]} 4... Nf6 {[%clk 0:03:00.9]} 5. Nf3 {[%clk
0:03:00.1]} 5... c6 {[%clk 0:03:01]} 6. g3 {[%clk 0:02:56.9]} 6... Bf5 {[%clk
0:02:58.1]} 7. Bg2 {[%clk 0:02:55.2]} 7... e6 {[%clk 0:02:57]} 8. O-O {[%clk
0:02:54.9]} 8... Be7 {[%clk 0:02:57.5]} 9. Bf4 {[%clk 0:02:52.5]} 9... Qd8
{[%clk 0:02:57.5]} 10. Nh4 {[%clk 0:02:48]} 10... Bg4 {[%clk 0:02:57.2]} 11. Qd2
{[%clk 0:02:45.2]} 11... Nd5 {[%clk 0:02:46.9]} 12. Nxd5 {[%clk 0:02:41.6]}
12... cxd5 {[%clk 0:02:41.9]} 13. Nf3 {[%clk 0:02:39.3]} 13... O-O {[%clk
0:02:41]} 14. Ne5 {[%clk 0:02:38.9]} 14... Bf5 {[%clk 0:02:33.9]} 15. c4 {[%clk
0:02:27]} 15... Nc6 {[%clk 0:02:23.5]} 16. cxd5 {[%clk 0:01:56.9]} 16... exd5
{[%clk 0:02:22.6]} 17. Nxc6 {[%clk 0:01:54.9]} 17... bxc6 {[%clk 0:02:21.9]} 18.
Rac1 {[%clk 0:01:54.8]} 18... Qb6 {[%clk 0:02:09.1]} 19. Rfe1 {[%clk 0:01:51.4]}
19... Bb4 {[%clk 0:02:00.4]} 20. Rc3 {[%clk 0:01:44.2]} 20... Bxc3 {[%clk
0:01:54.5]} 21. bxc3 {[%clk 0:01:45.1]} 21... Rfe8 {[%clk 0:01:50.5]} 22. Be3
{[%clk 0:01:42.6]} 22... Rab8 {[%clk 0:01:36.2]} 23. Qe2 {[%clk 0:01:39.2]}
23... Qb2 {[%clk 0:01:25]} 24. Qa6 {[%clk 0:01:35.7]} 24... Qxc3 {[%clk
0:01:13.8]} 25. Rc1 {[%clk 0:01:33.1]} 25... Rb1 {[%clk 0:00:46]} 26. Rxb1
{[%clk 0:01:15]} 26... Bxb1 {[%clk 0:00:45.6]} 27. h3 {[%clk 0:01:06.2]} 27...
h6 {[%clk 0:00:35.7]} 28. Qxa7 {[%clk 0:01:03.4]} 28... Qe1+ {[%clk 0:00:34.7]}
29. Kh2 {[%clk 0:01:01.6]} 29... Be4 {[%clk 0:00:33.3]} 30. Bxe4 {[%clk
0:00:57.7]} 30... Rxe4 {[%clk 0:00:31.3]} 31. Qa8+ {[%clk 0:00:57.3]} 31... Kh7
{[%clk 0:00:31.8]} 32. Qxc6 {[%clk 0:00:58]} 32... Qe2 {[%clk 0:00:22.9]} 33.
Kg1 {[%clk 0:00:53.1]} 33... Qxa2 {[%clk 0:00:22.5]} 34. Qd7 {[%clk 0:00:48.5]}
34... f6 {[%clk 0:00:16.4]} 35. h4 {[%clk 0:00:45.4]} 35... Qc4 {[%clk
0:00:12.6]} 36. Kg2 {[%clk 0:00:42.3]} 36... Qe2 {[%clk 0:00:08.4]} 37. Qf5+
{[%clk 0:00:38.7]} 37... Kg8 {[%clk 0:00:07.3]} 38. Qxd5+ {[%clk 0:00:35.3]}
38... Kh7 {[%clk 0:00:06.3]} 39. Qxe4+ {[%clk 0:00:33.5]} 39... Kh8 {[%clk
0:00:07.1]} 40. Qf3 {[%clk 0:00:33.1]} 40... Qd3 {[%clk 0:00:06.7]} 41. d5
{[%clk 0:00:32.6]} 41... f5 {[%clk 0:00:06.2]} 42. Bxh6 {[%clk 0:00:28.8]} 42...
gxh6 {[%clk 0:00:06.1]} 43. Qxd3 {[%clk 0:00:28.4]} 1-0

[Event "*** SCC Grand Prix: Titled Tuesday Blitz"]
[Site "Chess.com"]
[Date "2020.09.29"]
[Round "2"]
[White "kuban1991"]
[Black "ehrenfeld"]
[Result "1/2-1/2"]
[WhiteElo "2837"]
[BlackElo "2539"]
[TimeControl "180+1"]
[EndTime "10:17:26 PDT"]
[Termination "Game drawn by repetition"]

1. Nf3 {[%clk 0:03:00.9]} 1... f5 {[%clk 0:02:58.7]} 2. d4 {[%clk 0:03:00.4]}
2... Nf6 {[%clk 0:02:57.8]} 3. Bg5 {[%clk 0:03:00.8]} 3... e6 {[%clk 0:02:56.7]}
4. Nbd2 {[%clk 0:03:01]} 4... Be7 {[%clk 0:02:54.9]} 5. Bxf6 {[%clk 0:03:00.9]}
5... Bxf6 {[%clk 0:02:54.4]} 6. e4 {[%clk 0:03:01.6]} 6... O-O {[%clk
0:02:51.5]} 7. Bd3 {[%clk 0:02:59.7]} 7... d5 {[%clk 0:02:50.7]} 8. exf5 {[%clk
0:02:55.9]} 8... exf5 {[%clk 0:02:50.3]} 9. O-O {[%clk 0:02:55.9]} 9... Nc6
{[%clk 0:02:50.1]} 10. c3 {[%clk 0:02:56.2]} 10... Qd6 {[%clk 0:02:46.5]} 11.
Re1 {[%clk 0:02:55.3]} 11... Bd7 {[%clk 0:02:43.9]} 12. b4 {[%clk 0:02:34.3]}
12... a6 {[%clk 0:02:37]} 13. a4 {[%clk 0:02:32.1]} 13... Rae8 {[%clk
0:02:11.8]} 14. Qc2 {[%clk 0:02:32.1]} 14... g6 {[%clk 0:02:07.7]} 15. Nb3
{[%clk 0:02:24.5]} 15... Nd8 {[%clk 0:02:00.5]} 16. Nc5 {[%clk 0:02:17.9]} 16...
Bc8 {[%clk 0:02:00.4]} 17. h4 {[%clk 0:02:10.4]} 17... Nf7 {[%clk 0:02:00.1]}
18. Qd2 {[%clk 0:02:02.2]} 18... Kg7 {[%clk 0:01:59.6]} 19. Rxe8 {[%clk
0:01:54.3]} 19... Rxe8 {[%clk 0:01:59]} 20. Re1 {[%clk 0:01:54.7]} 20... Re7
{[%clk 0:01:58.2]} 21. a5 {[%clk 0:01:51.3]} 21... h6 {[%clk 0:01:55.4]} 22. Bc2
{[%clk 0:01:41.1]} 22... g5 {[%clk 0:01:53.1]} 23. hxg5 {[%clk 0:01:41.1]} 23...
hxg5 {[%clk 0:01:52.7]} 24. Bb3 {[%clk 0:01:30.1]} 24... g4 {[%clk 0:01:48.2]}
25. Rxe7 {[%clk 0:01:30.4]} 25... Qxe7 {[%clk 0:01:39.5]} 26. Ne1 {[%clk
0:01:25.2]} 26... c6 {[%clk 0:01:26.7]} 27. Ned3 {[%clk 0:01:22.8]} 27... Bg5
{[%clk 0:01:24.2]} 28. Qd1 {[%clk 0:01:16.9]} 28... f4 {[%clk 0:01:14.8]} 29.
Bc2 {[%clk 0:01:13.7]} 29... g3 {[%clk 0:01:13.6]} 30. Qf3 {[%clk 0:01:00.1]}
30... gxf2+ {[%clk 0:01:09.8]} 31. Qxf2 {[%clk 0:00:58.8]} 31... Qf6 {[%clk
0:01:02.3]} 32. Ne1 {[%clk 0:00:54.5]} 32... Bh4 {[%clk 0:00:59.8]} 33. Qe2
{[%clk 0:00:52.7]} 33... Bg3 {[%clk 0:00:50.8]} 34. Nf3 {[%clk 0:00:48.3]} 34...
Bg4 {[%clk 0:00:47.4]} 35. Qd3 {[%clk 0:00:45.1]} 35... Qh6 {[%clk 0:00:45.8]}
36. Bd1 {[%clk 0:00:08.5]} 36... Ng5 {[%clk 0:00:44.3]} 37. Qe2 {[%clk
0:00:01.3]} 37... Nxf3+ {[%clk 0:00:16.6]} 38. gxf3 {[%clk 0:00:01.5]} 38... Bf5
{[%clk 0:00:15]} 39. Qe7+ {[%clk 0:00:01]} 39... Kg8 {[%clk 0:00:15]} 40. Qe8+
{[%clk 0:00:01.4]} 40... Kg7 {[%clk 0:00:15.1]} 41. Qe7+ {[%clk 0:00:02]} 41...
Kg8 {[%clk 0:00:14.8]} 42. Qe8+ {[%clk 0:00:02.5]} 42... Kg7 {[%clk 0:00:15]}
43. Qe7+ {[%clk 0:00:03.4]} 1/2-1/2